bitfinex-derivatives/quotes_ETHF0:USTF0_20250110
["timestamp","ask_amount","ask_price","bid_price","bid_amount"]
[1736520586391,0.30812,3245.6,3245.5,40.8]
[1736520586588,3.97799,3246.1,3245.2,3.2078]
[1736520586887,0.30815,3245.3,3244.8,4.2065]
[1736520587092,3.2078,3246.1,3245.2,3.2078]
[1736520587789,3.2078,3246.1,3244.9,40.8]
[1736520587993,0.30814,3245.5,3245.3,0.30815]
[1736520588195,3.2078,3246.1,3245.2,3.2078]
[1736520588495,0.30815,3245.3,3245.2,3.2078]
[1736520588688,1.0114,3246.0,3245.2,3.2078]
[1736520588894,1.0114,3246.0,3244.9,40.8]
[1736520589088,0.30816,3245.3,3245.2,3.2078]
[1736520589291,0.30814,3245.5,3245.3,0.30815]
[1736520589490,0.77033,3245.6,3244.9,40.8]
[1736520589692,3.2078,3245.7,3244.9,40.8]
[1736520589894,0.30818,3245.0,3244.9,40.8]
[1736520590093,0.77031,3245.6,3244.9,40.8]
[1736520590094,3.2078,3245.7,3244.9,40.8]
[1736520590297,0.30819,3244.9,3244.4,0.30823]
[1736520590492,3.2078,3245.3,3244.3,3.2078]
[1736520590693,0.30824,3244.4,3244.3,3.2078]
[1736520590894,0.30823,3244.6,3244.3,3.51604]
[1736520591094,0.77044,3245.1,3244.3,3.2078]
[1736520591296,0.30823,3244.5,3244.4,40.8]
[1736520591910,0.30823,3244.5,3243.7,5.0211971]
[1736520591911,3.3214621,3244.6,3243.8,3.2078]
[1736520592202,0.30834,3243.4,3243.0,4.77738385]
[1736520592387,2.386,3243.9,3243.3,3.2078]
[1736520592591,0.30837,3243.0,3242.9,5.60661963]
[1736520592787,3.51617,3243.0,3242.9,5.60661963]
[1736520592993,0.30837,3243.0,3242.9,5.60661963]
[1736520593387,0.30835,3243.3,3242.9,5.60661963]
[1736520593587,3.2078,3243.5,3242.9,5.60661963]
[1736520593790,3.2078,3244.2,3243.1,3.2078]
[1736520593987,3.2078,3244.2,3243.4,3.2078]
[1736520594193,0.30831,3243.6,3243.3,0.30834]
[1736520594390,0.30826,3244.2,3243.4,3.2078]
[1736520594597,0.30824,3244.4,3244.1,0.30826]
[1736520594787,6.5292621,3245.0,3243.5,0.77081]
[1736520594992,6.5292621,3245.0,3244.1,0.30826]
[1736520595191,6.5292621,3245.0,3244.0,3.2078]
[1736520595497,0.30826,3244.1,3244.0,3.2078]
[1736520595697,0.30826,3244.1,3243.0,1.0538]
[1736520595698,0.30829,3243.8,3243.7,3.2078]
[1736520595999,3.2078,3244.1,3243.1,3.2078]
[1736520596194,0.30831,3243.7,3243.4,0.30832]
[1736520596401,3.2078,3244.1,3243.6,3.2078]
[1736520596594,3.51607,3244.1,3243.8,0.30829]
[1736520596797,3.2078,3244.1,3243.0,1.0538]
[1736520597000,3.2078,3244.1,3243.3,3.2078]
[1736520597199,3.2078,3244.1,3243.3,3.51614]
[1736520597400,3.2078,3244.1,3243.3,3.2078]
[1736520597701,0.77055,3244.6,3243.4,3.2078]
[1736520597898,0.77065,3244.2,3243.2,3.2078]
[1736520598102,0.30833,3243.4,3243.2,3.2078]
[1736520598301,0.30834,3243.3,3243.2,3.2078]
[1736520598497,3.3214621,3244.0,3242.6,40.8]
[1736520598498,3.2078,3243.5,3242.6,40.8]
[1736520598703,3.2078,3243.5,3242.8,3.2078]
[1736520598902,3.2078,3243.5,3242.0,0.992]
[1736520598903,0.30842,3242.5,3242.0,0.992]
[1736520599107,3.2078,3243.5,3242.7,0.30839]
[1736520599398,3.2078,3243.5,3242.8,3.2078]
[1736520599601,0.30836,3243.1,3242.8,3.2078]
[1736520599800,3.2078,3243.5,3242.8,3.51618]
[1736520600106,3.2078,3243.6,3242.8,3.2078]
[1736520600302,0.30844,3242.3,3242.2,40.8]
[1736520600501,0.30844,3242.3,3242.2,44.0078]
[1736520600701,1.9755,3242.9,3242.1,3.2078]
[1736520600902,0.30849,3241.8,3241.4,3.51632]
[1736520601204,3.2078,3242.4,3241.5,40.8]
[1736520601396,0.77119,3241.9,3241.2,3.2078]
[1736520601603,6.5292621,3242.0,3241.2,3.2078]
[1736520602100,0.3085,3241.7,3241.3,0.30852]
[1736520602301,3.2078,3242.2,3241.6,3.2078]
[1736520602499,0.30847,3241.9,3241.8,3.2078]
[1736520602705,0.30844,3242.3,3242.0,0.30846]
[1736520602906,3.2078,3242.6,3241.8,3.2078]
[1736520603104,0.3084,3242.7,3242.4,0.30842]
[1736520603401,0.77084,3243.4,3242.6,3.2078]
[1736520603402,3.2078,3243.4,3242.6,3.2078]
[1736520603609,3.51614,3243.4,3242.7,0.3084]
[1736520603804,3.3214621,3244.0,3242.6,3.2078]
[1736520604010,1.0302,3244.5,3243.1,3.2078]
[1736520604011,0.7706,3244.4,3243.1,3.2078]
[1736520604212,7.5594621,3244.5,3243.5,3.2078]
[1736520604404,4.238,3244.5,3243.5,3.2078]
[1736520604606,0.30829,3243.9,3243.5,3.2078]
[1736520604912,7.5594621,3244.5,3243.5,3.2078]
[1736520605113,0.30824,3244.4,3243.7,0.3083]
[1736520605412,3.2078,3244.9,3244.1,3.2078]
[1736520605608,0.30825,3244.2,3243.9,0.30828]
[1736520605812,3.2078,3244.5,3243.7,3.2078]
[1736520606018,0.30829,3243.8,3243.7,3.2078]
[1736520606210,0.30828,3243.9,3243.3,3.2078]
[1736520606513,0.77063,3244.3,3243.5,0.30832]
[1736520606712,0.77064,3244.2,3243.5,3.2078]
[1736520606916,0.3083,3243.8,3243.6,0.30831]
[1736520607220,0.7706,3244.4,3243.5,3.2078]
[1736520607424,6.5292621,3244.5,3243.6,40.8]
[1736520607722,0.30819,3244.9,3244.4,3.2078]
[1736520607914,3.2078,3245.4,3244.8,0.3082]
[1736520608118,3.2078,3245.8,3244.8,3.2078]
[1736520608326,0.30816,3245.3,3245.1,0.30817]
[1736520608522,6.5292621,3246.0,3245.3,0.30815]
[1736520608723,0.30815,3245.3,3244.8,3.2078]
[1736520608923,3.2078,3246.0,3245.2,3.2078]
[1736520609123,0.9661,3246.2,3245.2,3.2078]
[1736520609317,4.0915621,3246.5,3245.6,3.2078]
[1736520609318,0.30805,3246.4,3245.6,3.2078]
[1736520609525,3.3214621,3246.5,3245.7,3.2078]
[1736520609824,3.2078,3246.8,3245.6,3.2078]
[1736520610417,3.97794,3246.4,3245.3,0.30814]
[1736520610618,3.2078,3246.4,3245.2,1.046]
[1736520610815,0.77024,3245.9,3245.1,3.2078]
[1736520611021,3.2078,3245.6,3244.5,3.2078]
[1736520611221,1.0538,3245.8,3245.0,3.2078]
[1736520611524,0.30817,3245.1,3245.0,3.2078]
[1736520611922,0.77032,3245.6,3244.3,3.2078]
[1736520611923,0.77039,3245.3,3244.3,3.2078]
[1736520612132,0.30822,3244.6,3244.3,3.51604]
[1736520612330,0.30818,3245.0,3244.7,0.30821]
[1736520612526,0.3082,3244.9,3244.5,0.30822]
[1736520612724,3.2078,3245.1,3244.3,3.2078]
[1736520612919,6.5292621,3245.5,3244.5,0.30822]
[1736520613232,0.30815,3245.4,3245.0,0.30818]
[1736520613530,0.30809,3245.9,3245.2,0.30815]
[1736520613730,0.30815,3245.4,3245.1,3.2078]
[1736520613922,3.2078,3245.6,3244.5,3.2078]
[1736520614123,0.30822,3244.6,3244.5,3.2078]
[1736520614319,0.3082,3244.8,3244.5,3.2078]
[1736520614524,0.30821,3244.7,3244.5,3.2078]
[1736520614724,0.30822,3244.6,3244.5,3.2078]
[1736520614928,3.2078,3244.6,3243.7,3.2078]
[1736520615128,0.30828,3244.0,3243.6,0.30831]
[1736520615327,0.30829,3243.9,3243.4,1.819]
[1736520615531,0.30828,3244.0,3243.5,0.30832]
[1736520615726,0.30827,3244.0,3243.4,5.0268]
[1736520615932,3.2078,3244.6,3243.9,3.2078]
[1736520616226,1.0117,3244.9,3243.9,3.2078]
[1736520616528,0.30821,3244.7,3244.6,0.0021087]
[1736520616732,0.30819,3244.9,3244.6,0.0021087]
[1736520617034,1.0214,3245.4,3244.6,0.0021087]
[1736520617627,0.30817,3245.1,3244.7,41.1082]
[1736520617927,0.30818,3245.1,3244.7,41.1082]
[1736520618121,1.0173,3245.8,3244.6,0.0021087]
[1736520618122,3.2078,3245.3,3244.6,0.0021087]
[1736520618328,0.30821,3244.7,3244.6,0.0021087]
[1736520619924,0.30821,3244.7,3244.6,0.0021087]
[1736520620727,3.2078,3245.3,3244.6,0.0021087]
[1736520620926,4.1874,3245.7,3244.7,3.2078]
[1736520621127,0.30814,3245.4,3245.2,0.30816]
[1736520621334,0.30813,3245.6,3245.4,0.30814]
[1736520621533,3.2078,3245.7,3245.2,0.30815]
[1736520621729,3.2078,3245.7,3244.6,0.0021087]
[1736520621730,0.3082,3244.8,3244.6,0.3103187]
[1736520621928,0.30821,3244.7,3244.6,0.0021087]
[1736520623932,0.30821,3244.7,3243.4,1.0421]
[1736520623933,0.30833,3243.4,3243.3,3.2078]
[1736520624137,3.3214621,3243.4,3242.3,3.2078]
[1736520624334,0.3084,3242.7,3242.6,40.8]
[1736520624637,0.30843,3242.4,3242.2,0.30844]
[1736520624930,0.30846,3242.0,3241.9,9.55411407]
[1736520625136,3.2078,3242.5,3241.4,3.2078]
[1736520625331,3.2078,3242.5,3242.0,3.2078]
[1736520625524,0.30841,3242.6,3242.4,0.30842]
[1736520625723,1.0402,3243.1,3242.0,3.2078]
[1736520625928,3.2078,3243.2,3242.1,3.2078]
[1736520626131,0.30836,3243.1,3242.8,0.30838]
[1736520626327,0.30835,3243.2,3243.0,0.30836]
[1736520626527,0.30836,3243.1,3242.9,0.30837]
[1736520626727,0.30838,3243.0,3242.6,3.2078]
[1736520626928,0.3084,3242.7,3242.6,3.2078]
[1736520627134,0.9668,3243.8,3242.6,3.2078]
[1736520627340,3.2078,3244.6,3243.4,3.2078]
[1736520627532,5.95644669,3244.9,3244.7,0.3082]
[1736520627732,5.95644669,3244.9,3244.8,40.8]
[1736520628033,5.95644669,3244.9,3244.8,44.316]
[1736520628232,5.95644669,3244.9,3244.8,44.0078]
[1736520628428,0.30818,3245.0,3244.8,40.8]
[1736520628626,0.77031,3245.7,3244.8,40.8]
[1736520628833,0.30819,3245.0,3244.8,40.8]
[1736520629143,0.30813,3245.6,3244.8,40.8]
[1736520629336,3.2078,3245.8,3244.9,0.9972]
[1736520629536,7.2993721,3246.5,3245.1,3.2078]
[1736520629729,0.30811,3245.8,3245.4,0.30813]
[1736520629934,6.5292621,3246.5,3245.5,3.2078]
[1736520630231,6.5292621,3246.5,3245.8,0.3081]
[1736520630232,0.30807,3246.2,3245.8,0.3081]
[1736520630635,0.30807,3246.1,3245.8,0.3081]
[1736520630830,3.2078,3246.1,3245.0,3.2078]
[1736520631041,4.0916821,3246.0,3245.0,3.2078]
[1736520631537,3.2078,3245.6,3244.4,3.2078]
[1736520631733,0.981,3245.5,3244.4,3.2078]
[1736520631935,0.9643,3245.9,3245.4,3.2078]
[1736520632129,5.95644669,3246.4,3245.4,3.2078]
[1736520632329,9.16424669,3246.4,3245.4,3.2078]
[1736520632529,9.16424669,3246.4,3244.8,1.016]
[1736520632530,5.95644669,3246.4,3246.2,0.30806]
[1736520632941,5.95644669,3246.4,3245.8,3.2078]
[1736520633135,0.30806,3246.3,3245.8,3.5159]
[1736520633334,0.30806,3246.4,3245.9,0.30809]
[1736520633535,4.94209,3247.0,3245.8,3.2078]
[1736520633733,4.1721,3247.0,3245.8,3.2078]
[1736520633930,0.9643,3247.0,3245.8,3.2078]
[1736520634334,3.2078,3247.1,3245.9,1.0516]
[1736520634536,1.0526,3247.8,3246.2,3.2078]
[1736520634740,5.95644669,3247.9,3247.4,3.2078]
[1736520635136,5.95644669,3247.9,3247.8,3.2078]
[1736520635332,5.95644669,3247.9,3247.8,3.51571]
[1736520635539,13.92940404,3248.9,3247.8,3.51571]
[1736520635540,5.95644669,3248.6,3247.8,3.2078]
[1736520635739,5.95644669,3248.6,3248.2,0.30788]
[1736520635938,5.95644669,3248.6,3248.1,3.51568]
[1736520636141,5.95644669,3248.6,3248.2,40.8]
[1736520636339,5.95644669,3248.6,3248.2,41.10787]
[1736520636535,5.95644669,3248.6,3248.2,40.8]
[1736520636841,6.26428669,3248.6,3248.2,40.8]
[1736520637036,0.30783,3248.7,3248.2,40.8]
[1736520637242,3.2078,3249.0,3248.1,3.2078]
[1736520637643,3.2078,3248.5,3247.6,3.2078]
[1736520637841,0.30794,3247.6,3247.2,3.2078]
[1736520638145,3.2078,3248.0,3247.0,1.818]
[1736520638339,3.2078,3247.6,3246.7,3.2078]
[1736520638541,0.30798,3247.1,3246.7,3.2078]
[1736520638739,0.30797,3247.2,3246.7,3.2078]
[1736520639135,3.2078,3247.6,3246.7,3.2078]
[1736520639136,0.308,3246.9,3246.7,3.2078]
[1736520639546,0.30795,3247.4,3246.7,3.51581]
[1736520639840,0.9637,3247.9,3247.1,3.2078]
[1736520640044,3.51571,3247.8,3247.1,3.2078]
[1736520640240,0.30794,3247.6,3247.1,3.2078]
[1736520640441,0.30794,3247.5,3246.7,3.2078]
[1736520640642,3.2078,3247.8,3246.7,3.2078]
[1736520640843,0.30797,3247.3,3246.7,3.51582]
[1736520641044,3.2078,3247.8,3246.7,3.51582]
[1736520641244,0.30797,3247.3,3246.7,3.2078]
[1736520641442,3.2078,3247.8,3246.7,3.2078]
[1736520641650,3.2078,3247.8,3246.8,0.308]
[1736520641851,0.9637,3247.9,3247.4,3.2078]
[1736520641852,1.27161,3247.9,3247.4,3.2078]
[1736520642150,0.30789,3248.0,3247.5,0.30794]
[1736520642350,3.2078,3248.2,3247.3,3.2078]
[1736520642351,0.30788,3248.2,3247.3,3.2078]
[1736520642649,3.20782,3248.8,3247.9,3.2078]
[1736520643154,0.76958,3248.7,3247.9,3.2078]
[1736520643349,0.30789,3248.0,3247.9,3.2078]
[1736520643648,3.20782,3248.8,3247.9,3.2078]
[1736520644153,0.30787,3248.3,3247.9,3.5157]
[1736520644649,0.30789,3248.0,3247.9,3.2078]
[1736520645847,0.76977,3247.9,3246.9,40.8]
[1736520646048,3.2078,3247.5,3247.1,0.30798]
[1736520646253,5.0228,3248.3,3247.1,3.2078]
[1736520646454,3.2078,3248.3,3247.2,40.8]
[1736520646653,0.30786,3248.4,3248.1,0.30788]
[1736520646956,3.20782,3248.8,3248.0,3.51569]
[1736520647146,3.20782,3248.8,3247.6,3.2078]
[1736520647349,3.2078,3248.4,3248.2,0.30787]
[1736520647551,2e-05,3248.8,3247.7,3.2078]
[1736520647751,0.30786,3248.4,3248.1,0.30788]
[1736520647947,0.30784,3248.6,3248.4,0.30785]
[1736520648153,2e-05,3248.8,3248.1,0.30788]
[1736520648154,0.30787,3248.3,3248.1,0.30788]
[1736520648353,2e-05,3248.8,3247.8,0.30791]
[1736520648550,2e-05,3248.8,3247.4,1.07783]
[1736520648551,0.30788,3248.2,3247.4,1.07783]
[1736520648749,0.30788,3248.2,3248.0,0.30789]
[1736520649062,0.76958,3248.8,3247.7,3.2078]
[1736520649063,2e-05,3248.8,3247.7,3.2078]
[1736520649256,2e-05,3248.8,3248.4,0.30785]
[1736520649555,2e-05,3248.8,3248.1,3.2078]
[1736520649853,2e-05,3248.8,3248.6,0.30783]
[1736520650252,2e-05,3248.8,3248.2,3.2078]
[1736520650555,0.30788,3248.2,3247.9,0.3079]
[1736520650755,0.3079,3248.0,3247.7,3.51572]
[1736520650954,3.51568,3248.2,3248.0,0.30789]
[1736520651154,1.77178,3248.7,3247.7,3.2078]
[1736520651155,3.1789,3248.5,3247.7,3.2078]
[1736520651560,0.76967,3248.3,3247.3,3.2078]
[1736520651748,3.2078,3248.0,3247.1,0.9561]
[1736520651948,3.2078,3247.6,3247.1,1.26407]
[1736520652153,3.2078,3247.6,3247.1,41.7561]
[1736520652348,0.30795,3247.5,3247.2,0.30797]
[1736520652557,0.30795,3247.5,3247.1,41.7561]
[1736520652558,3.2078,3247.6,3247.1,41.7561]
[1736520652754,0.30795,3247.4,3247.2,0.30797]
[1736520652952,0.30797,3247.2,3247.1,40.8]
[1736520653151,0.30794,3247.5,3246.8,0.308]
[1736520653352,3.2078,3247.6,3246.5,3.2078]
[1736520653558,0.30801,3246.8,3246.6,41.10803]
[1736520653957,0.30802,3246.7,3246.6,40.8]
[1736520654153,3.2078,3246.7,3246.1,3.2078]
[1736520654454,0.30805,3246.4,3246.2,0.30806]
[1736520654655,0.7699,3247.4,3246.2,40.8]
[1736520654656,0.76989,3247.4,3246.2,40.8]
[1736520654954,3.2078,3247.1,3246.3,3.2078]
[1736520655153,3.3214621,3247.5,3246.3,3.2078]
[1736520655356,0.30799,3247.0,3246.8,0.308]
[1736520655655,3.2078,3247.1,3246.3,3.2078]
[1736520655857,0.30805,3246.4,3246.3,3.2078]
[1736520656059,0.30806,3246.3,3246.2,40.8]
[1736520656858,3.97787,3246.7,3245.8,0.3081]
[1736520656859,0.30809,3246.0,3245.8,0.3081]
[1736520657165,0.30811,3245.7,3245.5,0.30813]
[1736520657366,0.30811,3245.7,3245.1,3.2078]
[1736520657367,0.77017,3246.2,3245.1,3.45210484]
[1736520657662,0.77015,3246.3,3245.1,3.45210484]
[1736520657857,4.3711621,3246.5,3245.7,3.2078]
[1736520658066,3.2078,3246.7,3245.8,0.3081]
[1736520658067,0.30805,3246.4,3245.8,0.3081]
[1736520658265,0.30805,3246.4,3246.2,0.30806]
[1736520658768,0.30805,3246.4,3246.2,3.51586]
[1736520659063,3.2078,3246.7,3245.6,3.2078]
[1736520659265,0.30808,3246.1,3245.7,0.30811]
[1736520659456,3.2078,3246.7,3245.6,3.2078]
[1736520659657,0.76984,3247.7,3246.9,0.30799]
[1736520659858,0.30792,3247.8,3247.6,0.30793]
[1736520659859,0.30791,3247.8,3247.6,0.30793]
[1736520660058,3.2078,3247.9,3247.4,0.30794]
[1736520660258,3.2078,3247.9,3246.9,3.2078]
[1736520660458,0.30802,3246.7,3246.4,1.26654]
[1736520660766,0.76989,3247.4,3246.4,0.9585]
[1736520660969,0.76998,3247.1,3246.4,0.9585]
[1736520661261,0.9756,3248.0,3246.4,0.9585]
[1736520661262,0.9756,3248.0,3247.0,3.2078]
[1736520661456,1.0284,3248.3,3247.7,3.2078]
[1736520661958,1.0284,3248.3,3247.4,3.2078]
[1736520662266,3.2078,3248.0,3247.4,3.2078]
[1736520662559,0.30792,3247.8,3247.6,0.30793]
[1736520662760,0.30792,3247.7,3247.6,0.30793]
[1736520662960,0.7697,3248.2,3247.0,3.2078]
[1736520663162,0.9756,3248.6,3247.7,3.2078]
[1736520663479,2e-05,3248.8,3248.7,0.30783]
[1736520664157,2e-05,3248.8,3248.7,46.10783]
[1736520664855,3.2078,3249.7,3248.7,40.8]
[1736520665059,3.2078,3250.1,3249.3,3.2078]
[1736520665358,9.49529853,3251.4,3249.8,3.2078]
[1736520665359,1.76692,3251.1,3249.8,3.2078]
[1736520665563,0.30768,3250.3,3249.9,0.30771]
[1736520665759,3.2078,3250.9,3249.8,3.2078]
[1736520666061,3.2078,3251.8,3250.7,3.2078]
[1736520666259,3.2078,3251.8,3251.3,3.2078]
[1736520666760,3.2078,3251.8,3250.8,0.9953]
[1736520666761,3.2078,3251.8,3250.8,4.2031]
[1736520667159,3.2078,3251.8,3251.2,3.2078]
[1736520667356,0.30755,3251.7,3251.2,3.51539]
[1736520667663,0.30757,3251.5,3251.2,3.2078]
[1736520667971,0.30757,3251.4,3251.2,3.2078]
[1736520668161,0.30755,3251.7,3251.2,3.2078]
[1736520668365,3.2078,3251.8,3251.2,3.2078]
[1736520668565,3.2078,3252.5,3251.6,3.2078]
[1736520668758,0.3075,3252.2,3251.2,0.30759]
[1736520668964,0.30752,3252.0,3251.4,0.30757]
[1736520669162,3.2078,3252.1,3251.1,3.2078]
[1736520669366,0.30755,3251.7,3251.1,3.5154]
[1736520669660,3.2078,3252.1,3251.1,44.0078]
[1736520669866,0.3075,3252.2,3251.3,3.2078]
[1736520670066,3.2078,3252.5,3251.3,3.2078]
[1736520670271,3.2078,3251.8,3250.8,4.2031]
[1736520670564,4.96673,3252.7,3251.4,0.30757]
[1736520670763,3.2078,3252.3,3251.6,0.30755]
[1736520671269,3.2078,3252.3,3251.7,3.2078]
[1736520671970,3.2078,3252.3,3251.8,0.30753]
[1736520672172,3.2078,3252.3,3251.2,3.2078]
[1736520673061,3.2078,3252.3,3250.8,3.2078]
[1736520673062,3.2078,3251.9,3250.8,3.2078]
[1736520673257,1.813,3252.8,3250.8,3.2078]
[1736520673258,0.30762,3250.9,3250.8,3.2078]
[1736520673463,0.30762,3250.9,3249.7,40.8]
[1736520673464,3.2078,3251.0,3250.2,3.2078]
[1736520673864,3.2078,3251.0,3249.7,3.2078]
[1736520674069,3.2078,3251.0,3250.1,3.2078]
[1736520674269,3.2078,3251.0,3249.7,3.2078]
[1736520674563,3.2078,3250.6,3249.7,3.2078]
[1736520674772,0.30766,3250.5,3250.0,0.3077]
[1736520674963,0.30762,3250.9,3250.4,0.30766]
[1736520675162,3.2078,3251.2,3250.0,3.2078]
[1736520675367,3.2078,3250.8,3250.0,3.2078]
[1736520676068,0.8213,3251.1,3250.4,3.2078]
[1736520676269,3.2078,3251.5,3250.6,0.30764]
[1736520676270,0.30762,3251.0,3250.6,0.30764]
[1736520676473,3.2078,3251.5,3250.4,3.2078]
[1736520676769,3.2078,3252.9,3251.4,3.2078]
[1736520676966,0.30747,3252.6,3252.2,0.30749]
[1736520677162,0.30747,3252.5,3252.1,0.3075]
[1736520677365,0.30746,3252.6,3252.3,0.30749]
[1736520677571,0.8408,3253.1,3252.5,3.2078]
[1736520677865,0.30742,3253.1,3252.6,0.30746]
[1736520678172,0.807,3253.8,3253.0,3.2078]
[1736520678466,3.2078,3254.0,3253.0,3.2078]
[1736520678666,3.2078,3253.6,3253.0,3.2078]
[1736520678867,0.3074,3253.2,3253.1,40.8]
[1736520679071,0.30746,3252.6,3252.4,3.2078]
[1736520679373,0.30747,3252.5,3252.4,3.2078]
[1736520679571,3.2078,3253.2,3252.0,3.2078]
[1736520679770,3.2078,3252.8,3252.0,3.2078]
[1736520680068,0.30754,3251.8,3251.5,5.32836]
[1736520680275,3.2078,3252.4,3251.5,5.0208]
[1736520680477,3.2078,3252.9,3252.0,3.2078]
[1736520680680,0.30751,3252.1,3251.6,3.2078]
[1736520680975,0.76864,3252.7,3251.6,3.2078]
[1736520681169,3.97641,3252.8,3251.6,3.2078]
[1736520681367,0.30748,3252.5,3252.2,0.30749]
[1736520681573,3.2078,3252.8,3252.2,3.2078]
[1736520681769,3.2078,3252.8,3251.8,3.2078]
[1736520681970,0.30753,3251.9,3251.8,3.2078]
[1736520682280,3.2078,3252.4,3251.2,3.2078]
[1736520682568,3.2078,3252.0,3251.2,3.2078]
[1736520682770,3.2078,3252.0,3250.6,1.812]
[1736520682771,0.76883,3251.9,3250.6,5.0198]
[1736520682964,3.2078,3252.0,3250.6,5.0198]
[1736520683165,3.2078,3251.6,3251.4,0.30757]
[1736520683365,3.2078,3252.0,3251.0,3.2078]
[1736520683566,0.3076,3251.1,3250.7,40.8]
[1736520683771,0.30756,3251.5,3250.7,41.10763]
[1736520683976,0.76892,3251.5,3250.7,40.8]
[1736520684173,0.788,3251.9,3250.7,40.8]
[1736520684374,0.788,3251.9,3251.4,0.30757]
[1736520684375,0.30755,3251.7,3251.4,0.30757]
[1736520684575,3.2078,3252.4,3251.3,3.2078]
[1736520684875,1.55657,3253.0,3252.1,0.3075]
[1736520685178,0.30748,3252.5,3252.2,0.30749]
[1736520685380,0.788,3253.0,3251.7,3.2078]
[1736520685381,1.55657,3253.0,3251.7,3.2078]
[1736520685575,0.788,3253.0,3251.7,3.2078]
[1736520685776,0.788,3253.0,3252.5,3.2078]
[1736520685988,3.2078,3253.2,3252.5,3.2078]
[1736520686473,3.2078,3253.2,3252.1,0.3075]
[1736520686681,3.2078,3253.2,3252.0,3.2078]
[1736520686884,0.30742,3253.1,3252.0,6.5292621]
[1736520687076,3.2078,3253.2,3252.1,0.30751]
[1736520687275,3.3214621,3254.2,3253.1,3.51521]
[1736520687276,0.30739,3253.4,3253.1,3.51521]
[1736520687475,3.2078,3254.0,3253.1,3.2078]
[1736520687774,3.2078,3254.0,3252.7,3.2078]
[1736520688077,0.30735,3253.8,3252.8,40.8]
[1736520688276,3.51514,3253.9,3253.6,0.30736]
[1736520688484,0.30737,3253.6,3253.3,0.30739]
[1736520688674,0.30737,3253.6,3253.1,3.2078]
[1736520688675,3.2078,3253.9,3253.1,3.2078]
[1736520688871,3.2078,3253.9,3253.2,40.8]
[1736520688872,0.76837,3253.8,3253.2,40.8]
[1736520689076,0.30739,3253.3,3253.0,0.30741]
[1736520689279,3.2078,3253.5,3252.4,5.0198]
[1736520689478,0.76847,3253.4,3252.4,5.0198]
[1736520689680,0.30742,3253.0,3252.5,0.30747]
[1736520689883,3.51518,3253.5,3253.2,0.30739]
[1736520690076,3.2078,3254.1,3252.8,3.2078]
[1736520690384,3.2078,3254.1,3252.4,2.58068]
[1736520690385,0.30745,3252.8,3252.5,0.30746]
[1736520690599,0.30745,3252.8,3252.0,3.3214621]
[1736520690600,0.0023461,3253.0,3252.0,3.2078]
[1736520690786,0.30755,3251.7,3251.5,0.30756]
[1736520690985,3.2078,3252.5,3251.4,3.2078]
[1736520691178,3.2078,3252.5,3251.8,3.2078]
[1736520691486,0.7687,3252.4,3251.5,40.8]
[1736520691779,3.2078,3252.5,3251.8,3.2078]
[1736520692178,0.30755,3251.6,3251.5,40.8]
[1736520692487,0.30753,3251.9,3251.6,0.30755]
[1736520692784,3.2078,3252.5,3251.5,40.8]
[1736520693186,0.30748,3252.4,3251.5,41.56891]
[1736520693382,3.2078,3252.5,3251.8,3.2078]
[1736520693585,3.2078,3252.5,3251.5,40.8]
[1736520693789,3.2078,3252.1,3251.5,40.8]
[1736520693989,0.30752,3252.0,3251.6,0.30755]
[1736520694286,3.2078,3252.5,3251.5,40.8]
[1736520694580,3.2078,3252.5,3251.9,3.2078]
[1736520694777,0.30753,3252.0,3251.7,0.30754]
[1736520694980,0.30754,3251.8,3251.5,44.31536]
[1736520695180,0.76873,3252.3,3251.5,44.0078]
[1736520695383,0.30755,3251.6,3251.5,44.0078]
[1736520695579,3.2078,3252.1,3251.5,44.0078]
[1736520695780,0.30754,3251.8,3251.6,0.30755]
[1736520695984,3.2078,3252.1,3251.5,44.0078]
[1736520696186,0.30755,3251.6,3251.5,44.0078]
[1736520696390,3.2078,3252.1,3251.5,44.0078]
[1736520696886,3.2078,3252.6,3251.9,3.2078]
[1736520697188,0.3075,3252.3,3251.9,3.2078]
[1736520697380,0.30748,3252.5,3252.2,0.30749]
[1736520697687,0.30754,3251.8,3251.6,0.30755]
[1736520697887,0.30753,3251.8,3251.7,40.8]
[1736520698585,0.30761,3251.1,3250.9,3.51542]
[1736520698883,3.2078,3251.8,3250.5,3.9989]
[1736520699083,3.2078,3251.4,3250.6,40.8]
[1736520699288,0.30764,3250.7,3250.6,40.8]
[1736520699489,3.2078,3251.0,3249.8,0.772]
[1736520699786,3.2078,3250.6,3250.2,3.2078]
[1736520699982,3.2078,3251.2,3250.3,40.8]
[1736520700184,3.9659,3251.7,3250.3,40.8]
[1736520700483,0.30762,3251.0,3250.4,3.2078]
[1736520700683,3.9659,3251.7,3250.4,3.2078]
[1736520700884,3.9659,3251.7,3249.0,3.2078]
[1736520700885,3.2078,3250.6,3249.0,3.2078]
[1736520701180,3.2078,3250.6,3248.5,3.3214621]
[1736520701181,3.51554,3249.7,3249.3,0.30777]
[1736520701383,0.30776,3249.5,3249.4,40.8]
[1736520701576,3.2078,3249.7,3248.6,0.7913]
[1736520701577,0.3078,3249.0,3248.6,0.7913]
[1736520701783,3.2078,3249.7,3248.9,3.2078]
[1736520701988,3.42873,3249.7,3249.3,0.30777]
[1736520702194,3.121,3249.7,3249.3,41.10777]